[Event "*** Titled Tuesday 3|2 Blitz"]
[Site "Chess.com"]
[Date "2016.05.03"]
[Round "4"]
[White "Carolina-moon"]
[Black "FearNoEvil12"]
[Result "0-1"]
[WhiteElo "2033"]
[BlackElo "1913"]
[TimeControl "180+2"]
[EndTime "11:52:20 PDT"]
[Termination "FearNoEvil12 won by resignation"]

1. e4 {[%clk 0:03:01.9]} 1... c5 {[%clk 0:02:55.9]} 2. Nc3 {[%clk 0:03:02.1]}
2... e6 {[%clk 0:02:53.5]} 3. g3 {[%clk 0:03:00.3]} 3... d5 {[%clk 0:02:53]} 4.
exd5 {[%clk 0:02:58.2]} 4... exd5 {[%clk 0:02:52.3]} 5. Bg2 {[%clk 0:02:59.6]}
5... Nf6 {[%clk 0:02:51.3]} 6. d4 {[%clk 0:02:49.6]} 6... Nc6 {[%clk 0:02:49.9]}
7. Nge2 {[%clk 0:02:49.4]} 7... Bg4 {[%clk 0:02:48.6]} 8. h3 {[%clk 0:02:48.1]}
8... Bh5 {[%clk 0:02:47.4]} 9. Be3 {[%clk 0:02:48.8]} 9... cxd4 {[%clk 0:02:21]}
10. Bxd4 {[%clk 0:02:49.2]} 10... Nxd4 {[%clk 0:02:19.7]} 11. Qxd4 {[%clk
0:02:49.2]} 11... Bxe2 {[%clk 0:02:10.2]} 12. Nxe2 {[%clk 0:02:47.6]} 12... Be7
{[%clk 0:02:03.7]} 13. O-O {[%clk 0:02:44.4]} 13... O-O {[%clk 0:02:03.5]} 14.
Nf4 {[%clk 0:02:41.4]} 14... Rc8 {[%clk 0:02:00]} 15. c3 {[%clk 0:02:42.3]}
15... Bc5 {[%clk 0:01:56.3]} 16. Qd3 {[%clk 0:02:41.2]} 16... d4 {[%clk
0:01:55.6]} 17. Rad1 {[%clk 0:02:33.7]} 17... dxc3 {[%clk 0:01:52.5]} 18. bxc3
{[%clk 0:02:31.4]} 18... Qb6 {[%clk 0:01:47.8]} 19. Nd5 {[%clk 0:02:27.9]} 19...
Nxd5 {[%clk 0:01:47.3]} 20. Bxd5 {[%clk 0:02:28.9]} 20... Qc7 {[%clk 0:01:41.1]}
21. c4 {[%clk 0:02:27.6]} 21... b6 {[%clk 0:01:40.9]} 22. Kg2 {[%clk 0:02:25.4]}
22... g6 {[%clk 0:01:40.5]} 23. Rfe1 {[%clk 0:02:26]} 23... Rfe8 {[%clk
0:01:39.3]} 24. Qf3 {[%clk 0:02:21.1]} 24... Kg7 {[%clk 0:01:32.2]} 25. Qc3+
{[%clk 0:02:17.6]} 25... f6 {[%clk 0:01:30.5]} 26. Qf3 {[%clk 0:02:08.4]} 26...
a5 {[%clk 0:01:19.9]} 27. h4 {[%clk 0:02:02.1]} 27... Re5 {[%clk 0:01:10.7]} 28.
Be6 {[%clk 0:01:50.1]} 28... Rd8 {[%clk 0:00:59]} 29. Rxd8 {[%clk 0:01:48]}
29... Qxd8 {[%clk 0:00:59]} 30. Rxe5 {[%clk 0:01:47.1]} 30... fxe5 {[%clk
0:00:58.5]} 31. Qf7+ {[%clk 0:01:47.1]} 31... Kh6 {[%clk 0:00:57.1]} 32. Bd5
{[%clk 0:01:20.6]} 32... Qf8 {[%clk 0:00:55.2]} 33. Qxf8+ {[%clk 0:01:10.7]}
33... Bxf8 {[%clk 0:00:55.2]} 34. Kf3 {[%clk 0:01:10.2]} 34... Kg7 {[%clk
0:00:54.4]} 35. Ke4 {[%clk 0:01:10.7]} 35... Kf6 {[%clk 0:00:55.1]} 36. f3
{[%clk 0:01:11.1]} 36... h6 {[%clk 0:00:54.4]} 37. f4 {[%clk 0:01:10.2]} 37...
exf4 {[%clk 0:00:53.8]} 38. gxf4 {[%clk 0:01:04.6]} 38... Bb4 {[%clk 0:00:51.6]}
39. Kf3 {[%clk 0:00:59.7]} 39... Be1 {[%clk 0:00:44.7]} 40. Kg4 {[%clk
0:00:57.9]} 40... h5+ {[%clk 0:00:45.2]} 41. Kh3 {[%clk 0:00:58]} 41... Kf5
{[%clk 0:00:46.4]} 42. Bf7 {[%clk 0:00:58.3]} 42... Bd2 {[%clk 0:00:40.5]} 43.
Be8 {[%clk 0:00:58.6]} 43... Bxf4 {[%clk 0:00:40.1]} 44. Bf7 {[%clk 0:00:58.9]}
44... Bd6 {[%clk 0:00:39.4]} 45. Be8 {[%clk 0:00:59.4]} 45... Kf6 {[%clk
0:00:35.5]} 46. Kg2 {[%clk 0:00:49.6]} 46... g5 {[%clk 0:00:33.1]} 47. Bxh5
{[%clk 0:00:47.3]} 47... gxh4 {[%clk 0:00:33.4]} 48. Kf3 {[%clk 0:00:48.1]}
48... Kg5 {[%clk 0:00:34.5]} 49. Be8 {[%clk 0:00:47.6]} 49... h3 {[%clk
0:00:34.9]} 50. Bc6 {[%clk 0:00:44.7]} 50... h2 {[%clk 0:00:34.9]} 51. Ke3
{[%clk 0:00:45.5]} 51... Kf5 {[%clk 0:00:34.3]} 52. Kd4 {[%clk 0:00:46.3]} 52...
Bc5+ {[%clk 0:00:33.4]} 53. Kd3 {[%clk 0:00:45.2]} 53... Kf4 {[%clk 0:00:32.5]}
54. Bh1 {[%clk 0:00:43.7]} 54... Bf8 {[%clk 0:00:29.6]} 55. Kd4 {[%clk
0:00:42.9]} 55... Kg3 {[%clk 0:00:27.9]} 56. Kd5 {[%clk 0:00:43.2]} 56... Bc5
{[%clk 0:00:27.9]} 57. Kc6 {[%clk 0:00:42.6]} 57... Kf2 {[%clk 0:00:28.6]} 58.
Kb5 {[%clk 0:00:40.8]} 58... Kg1 {[%clk 0:00:29]} 59. Bd5 {[%clk 0:00:38]} 59...
h1=Q {[%clk 0:00:29.6]} 60. Bxh1 {[%clk 0:00:38.5]} 60... Kxh1 {[%clk
0:00:30.9]} 61. Ka4 {[%clk 0:00:38.5]} 61... Kg2 {[%clk 0:00:31.9]} 62. Kb3
{[%clk 0:00:39.8]} 62... Kf3 {[%clk 0:00:33]} 63. Kc2 {[%clk 0:00:41.7]} 63...
Ke3 {[%clk 0:00:33.8]} 64. Kc3 {[%clk 0:00:42.7]} 64... Bb4+ {[%clk 0:00:33.7]}
65. Kb3 {[%clk 0:00:43.6]} 65... Kd4 {[%clk 0:00:34.4]} 66. a3 {[%clk
0:00:45.1]} 66... Bf8 {[%clk 0:00:31]} 67. Ka4 {[%clk 0:00:42.2]} 67... Kc5
{[%clk 0:00:30.1]} 68. Kb3 {[%clk 0:00:40.9]} 68... Bh6 {[%clk 0:00:31.3]} 69.
Ka4 {[%clk 0:00:42]} 69... Bc1 {[%clk 0:00:27.5]} 70. Kb3 {[%clk 0:00:42.4]}
70... Bxa3 {[%clk 0:00:27.5]} 71. Kxa3 {[%clk 0:00:40.9]} 71... Kxc4 {[%clk
0:00:28.6]} 72. Ka4 {[%clk 0:00:40.3]} 72... b5+ {[%clk 0:00:29]} 73. Ka3 {[%clk
0:00:40.2]} 73... b4+ {[%clk 0:00:29.7]} 74. Ka2 {[%clk 0:00:41.2]} 74... Kc3
{[%clk 0:00:30.2]} 75. Kb1 {[%clk 0:00:42.2]} 75... b3 {[%clk 0:00:31.1]} 76.
Ka1 {[%clk 0:00:39.9]} 76... b2+ {[%clk 0:00:30.8]} 77. Kb1 {[%clk 0:00:39.5]}
77... a4 {[%clk 0:00:32.2]} 78. Ka2 {[%clk 0:00:40.4]} 78... Kc2 {[%clk
0:00:33.3]} 79. Ka3 {[%clk 0:00:41.3]} 79... b1=Q {[%clk 0:00:33.1]} 80. Kxa4
{[%clk 0:00:42.3]} 80... Kc3 {[%clk 0:00:33.8]} 81. Ka5 {[%clk 0:00:43.3]} 81...
Kc4 {[%clk 0:00:34.1]} 82. Ka6 {[%clk 0:00:44.5]} 82... Kc5 {[%clk 0:00:34.8]}
0-1

[Event "*** Titled Tuesday 3|2 Blitz"]
[Site "Chess.com"]
[Date "2016.05.03"]
[Round "4"]
[White "saraswathii"]
[Black "simonachess"]
[Result "1/2-1/2"]
[WhiteElo "1972"]
[BlackElo "2127"]
[TimeControl "180+2"]
[EndTime "11:52:34 PDT"]
[Termination "Game drawn - insufficient material"]

1. e4 {[%clk 0:02:55.3]} 1... d6 {[%clk 0:02:53.4]} 2. d3 {[%clk 0:02:51.2]}
2... c5 {[%clk 0:02:52.9]} 3. Nf3 {[%clk 0:02:47.2]} 3... g6 {[%clk 0:02:54.1]}
4. g3 {[%clk 0:02:44.5]} 4... Bg7 {[%clk 0:02:55.6]} 5. Bg2 {[%clk 0:02:42.7]}
5... Nc6 {[%clk 0:02:57.3]} 6. O-O {[%clk 0:02:37.5]} 6... e6 {[%clk 0:02:58.8]}
7. c3 {[%clk 0:02:26.9]} 7... Nge7 {[%clk 0:02:55.5]} 8. Be3 {[%clk 0:02:25.1]}
8... O-O {[%clk 0:02:53.9]} 9. d4 {[%clk 0:02:23.9]} 9... cxd4 {[%clk
0:02:47.9]} 10. cxd4 {[%clk 0:02:23.8]} 10... b6 {[%clk 0:02:47.7]} 11. Nc3
{[%clk 0:02:22.8]} 11... d5 {[%clk 0:02:36.6]} 12. e5 {[%clk 0:02:22.6]} 12...
f6 {[%clk 0:02:38]} 13. exf6 {[%clk 0:02:19.5]} 13... Bxf6 {[%clk 0:02:39.4]}
14. Re1 {[%clk 0:02:16.1]} 14... Nf5 {[%clk 0:02:39.2]} 15. Qd2 {[%clk
0:02:12.5]} 15... Bd7 {[%clk 0:02:40.2]} 16. Rac1 {[%clk 0:02:09.7]} 16... Rc8
{[%clk 0:02:40.3]} 17. b3 {[%clk 0:01:54.5]} 17... Nxe3 {[%clk 0:01:56.6]} 18.
Qxe3 {[%clk 0:01:36.2]} 18... Qe8 {[%clk 0:01:39.4]} 19. Nb5 {[%clk 0:01:29.3]}
19... Qe7 {[%clk 0:01:33.5]} 20. Bh3 {[%clk 0:01:26.8]} 20... Rfe8 {[%clk
0:01:13.6]} 21. Re2 {[%clk 0:01:07.7]} 21... Nb4 {[%clk 0:00:32.7]} 22. Rxc8
{[%clk 0:01:05]} 22... Bxc8 {[%clk 0:00:34.6]} 23. a3 {[%clk 0:01:00.2]} 23...
Nc6 {[%clk 0:00:28.4]} 24. Nc3 {[%clk 0:00:31.8]} 24... Bd7 {[%clk 0:00:28.8]}
25. Nxd5 {[%clk 0:00:14.7]} 25... exd5 {[%clk 0:00:27.2]} 26. Qxe7 {[%clk
0:00:11.8]} 26... Rxe7 {[%clk 0:00:21.6]} 27. Rxe7 {[%clk 0:00:12.8]} 27... Bxe7
{[%clk 0:00:21.8]} 28. Bxd7 {[%clk 0:00:14.7]} 28... Nb8 {[%clk 0:00:20.5]} 29.
Be6+ {[%clk 0:00:15.8]} 29... Kf8 {[%clk 0:00:22]} 30. Bxd5 {[%clk 0:00:17.7]}
30... Bxa3 {[%clk 0:00:23.5]} 31. Ne5 {[%clk 0:00:18.6]} 31... Ke7 {[%clk
0:00:22.4]} 32. Nc4 {[%clk 0:00:19.2]} 32... Bb4 {[%clk 0:00:22.5]} 33. Bg8
{[%clk 0:00:20.5]} 33... h6 {[%clk 0:00:22.8]} 34. Bh7 {[%clk 0:00:21.7]} 34...
g5 {[%clk 0:00:24.4]} 35. Ne5 {[%clk 0:00:22.8]} 35... Kf6 {[%clk 0:00:22.6]}
36. f4 {[%clk 0:00:22.1]} 36... Bd2 {[%clk 0:00:21]} 37. f5 {[%clk 0:00:18.9]}
37... Be3+ {[%clk 0:00:21.4]} 38. Kg2 {[%clk 0:00:19.5]} 38... Bxd4 {[%clk
0:00:23.1]} 39. Ng4+ {[%clk 0:00:20.9]} 39... Kg7 {[%clk 0:00:23.3]} 40. Bg6
{[%clk 0:00:21.9]} 40... Nd7 {[%clk 0:00:23.2]} 41. h4 {[%clk 0:00:19.6]} 41...
gxh4 {[%clk 0:00:22]} 42. gxh4 {[%clk 0:00:21.5]} 42... Nf8 {[%clk 0:00:21]} 43.
h5 {[%clk 0:00:20.7]} 43... Bf6 {[%clk 0:00:21.9]} 44. Nf2 {[%clk 0:00:17.3]}
44... Nd7 {[%clk 0:00:21.5]} 45. Nd3 {[%clk 0:00:14.9]} 45... Bd4 {[%clk
0:00:20.3]} 46. Nf4 {[%clk 0:00:12.5]} 46... Kf6 {[%clk 0:00:21.7]} 47. Ne6
{[%clk 0:00:11.5]} 47... Be3 {[%clk 0:00:20.6]} 48. Nd8 {[%clk 0:00:09.1]} 48...
a5 {[%clk 0:00:20.9]} 49. Kf3 {[%clk 0:00:09.3]} 49... Bc1 {[%clk 0:00:21.7]}
50. Nf7 {[%clk 0:00:08]} 50... Nc5 {[%clk 0:00:21.1]} 51. Nd6 {[%clk 0:00:08.8]}
51... Nxb3 {[%clk 0:00:21.8]} 52. Nc4 {[%clk 0:00:09.5]} 52... b5 {[%clk
0:00:22]} 53. Nd6 {[%clk 0:00:09.6]} 53... a4 {[%clk 0:00:23.3]} 54. Ne4+ {[%clk
0:00:11]} 54... Kg7 {[%clk 0:00:23.9]} 55. Nd6 {[%clk 0:00:12.3]} 55... Kf6
{[%clk 0:00:24.8]} 56. Nxb5 {[%clk 0:00:13.3]} 56... a3 {[%clk 0:00:25.5]} 57.
Nxa3 {[%clk 0:00:14.6]} 57... Bxa3 {[%clk 0:00:26.4]} 58. Ke4 {[%clk 0:00:16]}
58... Bb2 {[%clk 0:00:27.4]} 59. Kd5 {[%clk 0:00:17.2]} 59... Nd4 {[%clk
0:00:28.7]} 60. Ke4 {[%clk 0:00:18.7]} 60... Ba1 {[%clk 0:00:28.5]} 61. Bh7
{[%clk 0:00:19.9]} 61... Bb2 {[%clk 0:00:28.5]} 62. Bg6 {[%clk 0:00:21.1]} 62...
Nc6 {[%clk 0:00:29.6]} 63. Bh7 {[%clk 0:00:22]} 63... Ne5 {[%clk 0:00:30.9]} 64.
Bg6 {[%clk 0:00:22.8]} 64... Ng4 {[%clk 0:00:30.2]} 65. Kf4 {[%clk 0:00:23.1]}
65... Nf2 {[%clk 0:00:31.5]} 66. Bh7 {[%clk 0:00:22.8]} 66... Nd3+ {[%clk
0:00:32.5]} 67. Ke4 {[%clk 0:00:23.5]} 67... Nc5+ {[%clk 0:00:33.3]} 68. Kd5
{[%clk 0:00:24]} 68... Nb7 {[%clk 0:00:32.9]} 69. Ke4 {[%clk 0:00:23.7]} 69...
Nd8 {[%clk 0:00:34]} 70. Kf4 {[%clk 0:00:24.7]} 70... Nc6 {[%clk 0:00:34.2]} 71.
Bg6 {[%clk 0:00:25.3]} 71... Ne7 {[%clk 0:00:35.4]} 72. Bh7 {[%clk 0:00:12]}
72... Bc1+ {[%clk 0:00:35]} 73. Kg4 {[%clk 0:00:12.8]} 73... Nd5 {[%clk
0:00:35.5]} 74. Bg6 {[%clk 0:00:13.9]} 74... Ne3+ {[%clk 0:00:36.9]} 75. Kh3
{[%clk 0:00:14.9]} 75... Nxf5 {[%clk 0:00:37.7]} 76. Bxf5 {[%clk 0:00:16.8]}
76... Kxf5 {[%clk 0:00:39.2]} 77. Kh2 {[%clk 0:00:18.5]} 77... Kg5 {[%clk
0:00:41.1]} 78. Kh1 {[%clk 0:00:20.4]} 78... Kxh5 {[%clk 0:00:42.9]} 79. Kh2
{[%clk 0:00:22.2]} 79... Kh4 {[%clk 0:00:44.8]} 80. Kh1 {[%clk 0:00:24.1]} 80...
Kg4 {[%clk 0:00:46.7]} 81. Kh2 {[%clk 0:00:25.9]} 81... h5 {[%clk 0:00:48.6]}
82. Kh1 {[%clk 0:00:27.7]} 82... h4 {[%clk 0:00:50.5]} 83. Kh2 {[%clk
0:00:29.6]} 83... h3 {[%clk 0:00:52.4]} 84. Kh1 {[%clk 0:00:31.5]} 84... h2
{[%clk 0:00:54]} 85. Kxh2 {[%clk 0:00:32.7]} 1/2-1/2

[Event "*** Titled Tuesday 3|2 Blitz"]
[Site "Chess.com"]
[Date "2016.05.03"]
[Round "4"]
[White "AvitalBor"]
[Black "hellokostya"]
[Result "1-0"]
[WhiteElo "2371"]
[BlackElo "2241"]
[TimeControl "180+2"]
[EndTime "11:53:01 PDT"]
[Termination "AvitalBor won by resignation"]

1. e4 {[%clk 0:02:59]} 1... c5 {[%clk 0:02:58.7]} 2. c3 {[%clk 0:02:59.6]} 2...
Nf6 {[%clk 0:02:59.2]} 3. e5 {[%clk 0:03:00.2]} 3... Nd5 {[%clk 0:03:00.8]} 4.
d4 {[%clk 0:03:01.8]} 4... cxd4 {[%clk 0:03:01.7]} 5. cxd4 {[%clk 0:03:03.7]}
5... e6 {[%clk 0:03:03.2]} 6. Nf3 {[%clk 0:03:04.3]} 6... d6 {[%clk 0:03:04.9]}
7. Bc4 {[%clk 0:03:05.7]} 7... Be7 {[%clk 0:03:06.5]} 8. exd6 {[%clk 0:03:06.3]}
8... Bxd6 {[%clk 0:03:06.7]} 9. O-O {[%clk 0:03:04.7]} 9... O-O {[%clk
0:03:07.6]} 10. Nc3 {[%clk 0:03:04.8]} 10... Nxc3 {[%clk 0:03:08.4]} 11. bxc3
{[%clk 0:03:06.7]} 11... Nd7 {[%clk 0:03:07.6]} 12. Bd3 {[%clk 0:03:03.5]} 12...
b6 {[%clk 0:03:05.5]} 13. Ng5 {[%clk 0:03:01.1]} 13... Nf6 {[%clk 0:03:01]} 14.
Qf3 {[%clk 0:02:31.1]} 14... Rb8 {[%clk 0:02:36.3]} 15. Ne4 {[%clk 0:02:31.7]}
15... Bb7 {[%clk 0:02:26.2]} 16. Nxf6+ {[%clk 0:02:25.4]} 16... Qxf6 {[%clk
0:02:27.7]} 17. Qh3 {[%clk 0:02:10.2]} 17... h6 {[%clk 0:02:20.6]} 18. Bc2
{[%clk 0:02:07.6]} 18... Bf4 {[%clk 0:02:10.9]} 19. Qd3 {[%clk 0:01:59.7]} 19...
g6 {[%clk 0:02:11.8]} 20. a4 {[%clk 0:01:48]} 20... Bxc1 {[%clk 0:02:10.6]} 21.
Rfxc1 {[%clk 0:01:49.9]} 21... Qg5 {[%clk 0:02:09.6]} 22. Qg3 {[%clk 0:01:50]}
22... Qxg3 {[%clk 0:02:01.1]} 23. hxg3 {[%clk 0:01:51.9]} 23... Rbc8 {[%clk
0:02:02.7]} 24. Bd3 {[%clk 0:01:52.3]} 24... Rfd8 {[%clk 0:01:58.4]} 25. a5
{[%clk 0:01:52.2]} 25... e5 {[%clk 0:01:56.5]} 26. axb6 {[%clk 0:01:51.8]} 26...
axb6 {[%clk 0:01:58]} 27. Ra7 {[%clk 0:01:50.6]} 27... Rb8 {[%clk 0:01:44.6]}
28. Bc4 {[%clk 0:01:37.4]} 28... exd4 {[%clk 0:01:43.6]} 29. cxd4 {[%clk
0:01:34]} 29... Rxd4 {[%clk 0:01:35.8]} 30. Ba2 {[%clk 0:01:26.1]} 30... Bd5
{[%clk 0:01:26.8]} 31. Rd7 {[%clk 0:01:23.4]} 31... Bxa2 {[%clk 0:01:22]} 32.
Rxd4 {[%clk 0:01:23.9]} 32... b5 {[%clk 0:01:21]} 33. Rc2 {[%clk 0:01:20]} 33...
Bc4 {[%clk 0:01:20.7]} 34. Rcd2 {[%clk 0:01:20.1]} 34... Kg7 {[%clk 0:01:20.8]}
35. g4 {[%clk 0:01:19.5]} 35... Ra8 {[%clk 0:01:17.2]} 36. Kh2 {[%clk
0:01:17.1]} 36... Ra3 {[%clk 0:01:17.4]} 37. f3 {[%clk 0:01:13.6]} 37... Rc3
{[%clk 0:01:17.7]} 38. Rb2 {[%clk 0:01:12.3]} 38... Rc1 {[%clk 0:01:16]} 39. Rd6
{[%clk 0:01:10.8]} 39... Rc3 {[%clk 0:01:13.5]} 40. Rc6 {[%clk 0:01:11.5]} 40...
Re3 {[%clk 0:01:13.3]} 41. Rd2 {[%clk 0:01:01.9]} 41... Re1 {[%clk 0:01:11.2]}
42. Rb6 {[%clk 0:01:02.1]} 42... Re8 {[%clk 0:01:10.6]} 43. Rdd6 {[%clk
0:00:59.6]} 43... Re2 {[%clk 0:01:07.9]} 44. Kg3 {[%clk 0:01:00.3]} 44... Ra2
{[%clk 0:01:08]} 45. Rd8 {[%clk 0:00:53.7]} 45... Bf1 {[%clk 0:01:03.4]} 46.
Rbb8 {[%clk 0:00:47.1]} 46... Rxg2+ {[%clk 0:00:57.8]} 47. Kf4 {[%clk
0:00:48.1]} 47... Bc4 {[%clk 0:00:47.8]} 48. Rg8+ {[%clk 0:00:40.8]} 48... Kf6
{[%clk 0:00:43.8]} 49. Rb6+ {[%clk 0:00:41]} 49... Be6 {[%clk 0:00:30.9]} 50.
Rxb5 {[%clk 0:00:39.3]} 50... Re2 {[%clk 0:00:30.1]} 51. Kg3 {[%clk 0:00:37.6]}
51... Re3 {[%clk 0:00:29.5]} 52. Rb6 {[%clk 0:00:36]} 52... Ra3 {[%clk
0:00:29.7]} 53. Rbb8 {[%clk 0:00:33.3]} 53... Ra4 {[%clk 0:00:25.4]} 54. Rh8
{[%clk 0:00:32.5]} 54... Bd5 {[%clk 0:00:21.4]} 55. Rb6+ {[%clk 0:00:20.3]}
55... Kg7 {[%clk 0:00:21.3]} 56. Rd8 {[%clk 0:00:21.7]} 56... Be6 {[%clk
0:00:21]} 57. Rd3 {[%clk 0:00:21.7]} 57... Ra1 {[%clk 0:00:20.4]} 58. Rc3 {[%clk
0:00:22.8]} 58... g5 {[%clk 0:00:21.1]} 59. Rc7 {[%clk 0:00:22.8]} 59... Kf6
{[%clk 0:00:20.6]} 60. Rcb7 {[%clk 0:00:23.3]} 60... Ra4 {[%clk 0:00:21]} 61.
Rb8 {[%clk 0:00:24.4]} 61... Ra3 {[%clk 0:00:21.6]} 62. Rd8 {[%clk 0:00:25.3]}
62... Kg7 {[%clk 0:00:22.1]} 63. Rbb8 {[%clk 0:00:25.9]} 63... Kf6 {[%clk
0:00:22.2]} 64. Rb6 {[%clk 0:00:21]} 64... Kg7 {[%clk 0:00:22.3]} 65. Rbd6
{[%clk 0:00:21.9]} 65... Kf6 {[%clk 0:00:22.9]} 66. Rb8 {[%clk 0:00:22.9]} 66...
Ke5 {[%clk 0:00:23.1]} 67. Rdd8 {[%clk 0:00:23.8]} 67... Bd5 {[%clk 0:00:22.8]}
68. Rb5 {[%clk 0:00:24.1]} 68... Rxf3+ {[%clk 0:00:23.1]} 69. Kh2 {[%clk
0:00:25.2]} 69... Rd3 {[%clk 0:00:23.8]} 70. Rh8 {[%clk 0:00:25.9]} 70... Kf4
{[%clk 0:00:23.2]} 71. Rb4+ {[%clk 0:00:26.6]} 71... Be4 {[%clk 0:00:23.6]} 72.
Rxh6 {[%clk 0:00:26.1]} 72... Rd2+ {[%clk 0:00:24.5]} 73. Kg1 {[%clk 0:00:26.8]}
73... Rd1+ {[%clk 0:00:24.3]} 74. Kf2 {[%clk 0:00:27.6]} 74... Rd2+ {[%clk
0:00:19.3]} 75. Ke1 {[%clk 0:00:28.8]} 75... Rg2 {[%clk 0:00:20.2]} 76. Rf6+
{[%clk 0:00:28.9]} 76... Ke5 {[%clk 0:00:21.4]} 77. Rxf7 {[%clk 0:00:30]} 77...
Rxg4 {[%clk 0:00:22.1]} 78. Re7+ {[%clk 0:00:31]} 78... Kf5 {[%clk 0:00:23.5]}
79. Kf2 {[%clk 0:00:30.6]} 79... Rf4+ {[%clk 0:00:23.1]} 80. Ke3 {[%clk
0:00:29.4]} 80... Rf3+ {[%clk 0:00:23.8]} 81. Kd4 {[%clk 0:00:24.3]} 81... Rd3+
{[%clk 0:00:23.1]} 82. Kc4 {[%clk 0:00:25.5]} 82... Rd8 {[%clk 0:00:21.5]} 83.
Kc3 {[%clk 0:00:24.8]} 83... Bf3 {[%clk 0:00:20.3]} 84. Rf7+ {[%clk 0:00:24.9]}
1-0

[Event "*** Titled Tuesday 3|2 Blitz"]
[Site "Chess.com"]
[Date "2016.05.03"]
[Round "4"]
[White "yurisolo"]
[Black "evgenyermolaev"]
[Result "0-1"]
[WhiteElo "2518"]
[BlackElo "2288"]
[TimeControl "180+2"]
[EndTime "11:53:05 PDT"]
[Termination "evgenyermolaev won by resignation"]

1. e4 {[%clk 0:03:01.9]} 1... c5 {[%clk 0:03:00.4]} 2. d4 {[%clk 0:03:01.1]}
2... cxd4 {[%clk 0:03:01]} 3. Nf3 {[%clk 0:03:02.6]} 3... d6 {[%clk 0:03:01.9]}
4. Nxd4 {[%clk 0:03:03.3]} 4... Nf6 {[%clk 0:03:02.7]} 5. Nc3 {[%clk 0:03:04.4]}
5... a6 {[%clk 0:03:04]} 6. Bg5 {[%clk 0:03:06]} 6... e6 {[%clk 0:03:04.3]} 7.
f4 {[%clk 0:03:07.6]} 7... h6 {[%clk 0:03:04.6]} 8. Bh4 {[%clk 0:03:08.1]} 8...
Be7 {[%clk 0:03:04.6]} 9. Qf3 {[%clk 0:03:08.4]} 9... Qc7 {[%clk 0:03:05.7]} 10.
O-O-O {[%clk 0:03:08.7]} 10... Nbd7 {[%clk 0:03:07]} 11. g4 {[%clk 0:03:04.2]}
11... g5 {[%clk 0:03:07.9]} 12. fxg5 {[%clk 0:03:01.6]} 12... Ne5 {[%clk
0:03:08.6]} 13. Qe2 {[%clk 0:03:02.7]} 13... Nfxg4 {[%clk 0:03:09.3]} 14. Nf3
{[%clk 0:02:59.1]} 14... Nxf3 {[%clk 0:03:05.6]} 15. Qxf3 {[%clk 0:02:59.6]}
15... hxg5 {[%clk 0:03:05.4]} 16. Bg3 {[%clk 0:02:50]} 16... Ne5 {[%clk
0:03:06.3]} 17. Bxe5 {[%clk 0:02:46.4]} 17... dxe5 {[%clk 0:03:07.1]} 18. Be2
{[%clk 0:02:41.2]} 18... Bd7 {[%clk 0:03:06.2]} 19. Rhf1 {[%clk 0:02:42.4]}
19... f6 {[%clk 0:03:07.4]} 20. Qg2 {[%clk 0:02:23.9]} 20... O-O-O {[%clk
0:03:06.8]} 21. Bg4 {[%clk 0:02:25.5]} 21... Kb8 {[%clk 0:02:50.3]} 22. Rd3
{[%clk 0:02:21]} 22... Bc8 {[%clk 0:02:41.1]} 23. Rfd1 {[%clk 0:02:21.9]} 23...
Rxd3 {[%clk 0:02:42]} 24. Rxd3 {[%clk 0:02:23.8]} 24... f5 {[%clk 0:02:40.3]}
25. Be2 {[%clk 0:01:29.1]} 25... g4 {[%clk 0:02:33]} 26. a3 {[%clk 0:01:10.6]}
26... Bg5+ {[%clk 0:02:23.5]} 27. Kb1 {[%clk 0:01:12]} 27... Bf4 {[%clk
0:02:18.1]} 28. h3 {[%clk 0:01:00]} 28... gxh3 {[%clk 0:01:31.8]} 29. Rxh3
{[%clk 0:01:01.9]} 29... Rxh3 {[%clk 0:01:32.2]} 30. Qxh3 {[%clk 0:01:03.8]}
30... Qg7 {[%clk 0:01:33]} 31. Bd3 {[%clk 0:01:00]} 31... Qf6 {[%clk 0:01:19]}
32. Qh7 {[%clk 0:00:20.9]} 32... Bd2 {[%clk 0:01:11.6]} 33. Na4 {[%clk
0:00:21.7]} 33... fxe4 {[%clk 0:01:05.8]} 34. Qxe4 {[%clk 0:00:21.2]} 34... Qf4
{[%clk 0:01:03.4]} 35. Nc5 {[%clk 0:00:21]} 35... Be3 {[%clk 0:00:58.7]} 36. Nb3
{[%clk 0:00:13.5]} 36... Bd7 {[%clk 0:00:55]} 37. Na5 {[%clk 0:00:13.4]} 37...
Bc8 {[%clk 0:00:48.2]} 38. Nc4 {[%clk 0:00:14.4]} 38... Qxe4 {[%clk 0:00:41.9]}
39. Bxe4 {[%clk 0:00:16.3]} 39... Bf4 {[%clk 0:00:43.8]} 40. c3 {[%clk
0:00:13.3]} 40... Kc7 {[%clk 0:00:43.3]} 41. Kc2 {[%clk 0:00:13.2]} 41... b5
{[%clk 0:00:44]} 42. Na5 {[%clk 0:00:12]} 42... Kb6 {[%clk 0:00:45.2]} 43. b4
{[%clk 0:00:12.2]} 43... Bd7 {[%clk 0:00:45.7]} 44. Nb3 {[%clk 0:00:13.3]} 44...
Be3 {[%clk 0:00:44.6]} 45. Kd3 {[%clk 0:00:14.3]} 45... Bg1 {[%clk 0:00:45.1]}
46. Bf3 {[%clk 0:00:11.8]} 46... Be8 {[%clk 0:00:45.1]} 47. Ke4 {[%clk
0:00:11.8]} 47... Bc6+ {[%clk 0:00:45.7]} 48. Kxe5 {[%clk 0:00:12.3]} 48... Bxf3
{[%clk 0:00:46.9]} 49. Kxe6 {[%clk 0:00:13.8]} 49... Bd1 {[%clk 0:00:37.7]} 50.
Na5 {[%clk 0:00:14.9]} 50... Be2 {[%clk 0:00:30.1]} 51. Kd5 {[%clk 0:00:15.3]}
51... Bf3+ {[%clk 0:00:24.3]} 52. Ke5 {[%clk 0:00:15.4]} 52... Bh2+ {[%clk
0:00:24.9]} 53. Kd4 {[%clk 0:00:16.1]} 53... Bg1+ {[%clk 0:00:22.7]} 54. Ke5
{[%clk 0:00:17]} 54... Bf2 {[%clk 0:00:13.8]} 55. Kf4 {[%clk 0:00:12.6]} 55...
Be2 {[%clk 0:00:14.1]} 56. Ke4 {[%clk 0:00:13.5]} 56... Be1 {[%clk 0:00:12.7]}
57. Ke3 {[%clk 0:00:13.3]} 57... Bf1 {[%clk 0:00:13.1]} 58. Kd4 {[%clk
0:00:14.2]} 58... Kc7 {[%clk 0:00:13.2]} 59. Nb3 {[%clk 0:00:11.9]} 59... Bc4
{[%clk 0:00:12.4]} 60. Na5 {[%clk 0:00:10.2]} 60... Ba2 {[%clk 0:00:13.5]} 61.
Kd3 {[%clk 0:00:05.8]} 61... Bh4 {[%clk 0:00:13.5]} 62. c4 {[%clk 0:00:04.7]}
62... bxc4+ {[%clk 0:00:13.5]} 63. Nxc4 {[%clk 0:00:05.8]} 63... Bxc4+ {[%clk
0:00:14.9]} 64. Kxc4 {[%clk 0:00:07.7]} 64... Kb6 {[%clk 0:00:16.5]} 65. a4
{[%clk 0:00:09.2]} 65... Be7 {[%clk 0:00:15.9]} 66. Kb3 {[%clk 0:00:09.9]} 66...
Bd6 {[%clk 0:00:14]} 67. Kc4 {[%clk 0:00:11.3]} 67... Bf8 {[%clk 0:00:14.6]} 68.
Kb3 {[%clk 0:00:12.7]} 68... Kc7 {[%clk 0:00:16]} 69. Kc4 {[%clk 0:00:13.8]}
69... Kd6 {[%clk 0:00:17.3]} 70. Kd4 {[%clk 0:00:14.1]} 70... Bg7+ {[%clk
0:00:17]} 71. Kc4 {[%clk 0:00:15.5]} 71... Bf6 {[%clk 0:00:18.4]} 72. Kb3 {[%clk
0:00:04.4]} 72... Kd5 {[%clk 0:00:19.4]} 73. Ka3 {[%clk 0:00:04]} 73... Kc4
{[%clk 0:00:19.7]} 74. a5 {[%clk 0:00:05.4]} 74... Be7 {[%clk 0:00:19.8]} 75.
Ka4 {[%clk 0:00:06.9]} 75... Bd6 {[%clk 0:00:19]} 0-1